bitfinex-derivatives/quotes_BNBF0:USTF0_20260221
["timestamp","ask_amount","ask_price","bid_price","bid_amount"]
[1771686315781,1.18468332,632.86,632.44,1.583]
[1771686315782,0.93929419,632.71,632.44,1.583]
[1771686315980,0.93929419,632.7,632.44,1.583]
[1771686316182,0.93929419,632.69,632.44,1.583]
[1771686316382,0.93929419,632.68,632.44,1.583]
[1771686316586,0.93929419,632.67,632.44,1.583]
[1771686316785,0.93929419,632.66,632.44,1.583]
[1771686316985,1.18468332,632.86,632.44,1.583]
[1771686317188,0.9391644,632.85,632.44,1.583]
[1771686317388,0.9391644,632.84,632.44,1.583]
[1771686317589,0.9391644,632.83,632.44,1.583]
[1771686317791,0.9391644,632.82,632.44,1.583]
[1771686318090,1.18468332,632.86,632.44,1.583]
[1771686318091,0.9391644,632.81,632.44,1.583]
[1771686318291,0.9391644,632.8,632.44,1.583]
[1771686318492,0.9391644,632.79,632.44,1.583]
[1771686318694,0.9391644,632.78,632.44,1.583]
[1771686318993,0.9391644,632.77,632.44,1.583]
[1771686319194,0.9391644,632.76,632.44,1.583]
[1771686319392,0.9391644,632.75,632.44,1.583]
[1771686319593,0.9391644,632.74,632.44,1.583]
[1771686319794,0.9391644,632.73,632.44,1.583]
[1771686320091,0.9391644,632.72,632.43,0.27502163]
[1771686320289,0.9391644,632.71,632.43,0.27502163]
[1771686320495,0.9391644,632.7,632.43,0.27502163]
[1771686320693,0.9391644,632.69,632.43,0.27502163]
[1771686320892,0.9391644,632.68,632.43,0.27502163]
[1771686321091,0.9391644,632.67,632.43,0.27502163]
[1771686321294,0.9391644,632.66,632.43,0.27502163]
[1771686321496,1.18468332,632.86,632.43,0.27502163]
[1771686321695,0.93903475,632.85,632.43,0.27502163]
[1771686321893,0.93903475,632.84,632.43,0.27502163]
[1771686322096,0.93903475,632.83,632.43,0.27502163]
[1771686322392,0.93903475,632.82,632.43,0.27502163]
[1771686322592,0.93903475,632.81,632.43,0.27502163]
[1771686322893,0.93903475,632.8,632.43,0.27502163]
[1771686323093,0.93903475,632.79,632.43,0.27502163]
[1771686323297,0.93903475,632.78,632.43,0.27502163]
[1771686323497,0.93903475,632.77,632.43,0.27502163]
[1771686323697,0.93903475,632.76,632.43,0.27502163]
[1771686323997,0.93903475,632.75,632.43,0.27502163]
[1771686324195,0.93903475,632.74,632.43,0.27502163]
[1771686324401,0.93903475,632.73,632.43,0.27502163]
[1771686324701,0.93903475,632.72,632.43,0.27502163]
[1771686324900,0.93903475,632.71,632.43,0.27502163]
[1771686325100,0.93903475,632.7,632.43,0.27502163]
[1771686325300,0.93903475,632.69,632.43,0.27502163]
[1771686325500,0.93903475,632.68,632.43,0.27502163]
[1771686325699,0.93903475,632.67,632.43,0.27502163]
[1771686325901,0.93903475,632.66,632.43,0.27502163]
[1771686326097,0.93903475,632.65,632.43,0.27502163]
[1771686326401,0.93903475,632.64,632.43,0.27502163]
[1771686326600,0.93903475,632.63,632.43,0.27502163]
[1771686326803,0.93903475,632.62,632.43,0.27502163]
[1771686327002,0.93903475,632.61,632.43,0.27502163]
[1771686327304,1.18468332,632.81,632.43,0.27502163]
[1771686327500,0.93876727,632.8,632.43,0.27502163]
[1771686327699,0.93876727,632.79,632.43,0.27502163]
[1771686327903,0.93876727,632.78,632.43,0.27502163]
[1771686328104,0.93876727,632.77,632.43,0.27502163]
[1771686328304,0.93876727,632.76,632.43,0.27502163]
[1771686328504,0.93876727,632.75,632.43,0.27502163]
[1771686328705,0.93876727,632.74,632.43,0.27502163]
[1771686328905,0.93876727,632.73,632.43,0.27502163]
[1771686329106,0.93876727,632.72,632.43,0.27502163]
[1771686329306,0.93876727,632.71,632.43,0.27502163]
[1771686329508,0.93876727,632.7,632.43,0.27502163]
[1771686329708,0.93876727,632.69,632.43,0.27502163]
[1771686329909,0.93876727,632.68,632.43,0.27502163]
[1771686330103,0.93876727,632.67,632.43,0.27502163]
[1771686330308,0.93876727,632.66,632.43,0.27502163]
[1771686330608,0.93876727,632.65,632.43,0.27502163]
[1771686330805,0.93876727,632.64,632.43,0.27502163]
[1771686331004,0.93876727,632.63,632.43,0.27502163]
[1771686331205,0.93876727,632.62,632.43,0.27502163]
[1771686331506,1.18468332,632.82,632.43,0.27502163]
[1771686331710,0.93837372,632.81,632.43,0.27502163]
[1771686331911,0.93837372,632.8,632.43,0.27502163]
[1771686332111,0.93837372,632.79,632.43,0.27502163]
[1771686332311,0.93837372,632.78,632.43,0.27502163]
[1771686332511,0.93837372,632.77,632.43,0.27502163]
[1771686332713,0.93837372,632.76,632.43,0.27502163]
[1771686332912,0.93837372,632.75,632.43,0.27502163]
[1771686333113,0.93837372,632.74,632.43,0.27502163]
[1771686333313,0.93837372,632.73,632.43,0.27502163]
[1771686333510,0.93837372,632.72,632.43,0.27502163]
[1771686333812,0.93837372,632.71,632.43,0.27502163]
[1771686334013,0.93837372,632.7,632.43,0.27502163]
[1771686334313,0.93837372,632.69,632.43,0.27502163]
[1771686334513,0.93837372,632.68,632.43,0.27502163]
[1771686334807,0.93837372,632.67,632.43,0.27502163]
[1771686335009,0.93837372,632.66,632.43,0.27502163]
[1771686335212,0.93837372,632.65,632.43,0.27502163]
[1771686335412,0.93837372,632.64,632.43,0.27502163]
[1771686335607,1.18280184,632.83,632.43,0.27502163]
[1771686335608,0.93837372,632.63,632.43,0.27502163]
[1771686335808,0.93837372,632.62,632.43,0.27502163]
[1771686336013,1.18280184,632.83,632.43,0.27502163]
[1771686336308,0.93816794,632.82,632.43,0.27502163]
[1771686336513,0.93816794,632.81,632.43,0.27502163]
[1771686336710,0.93816794,632.8,632.43,0.27502163]
[1771686337013,0.93816794,632.79,632.43,0.27502163]
[1771686337309,0.93816794,632.78,632.43,0.27502163]
[1771686337512,0.93816794,632.77,632.43,0.27502163]
[1771686337713,0.93816794,632.76,632.43,0.27502163]
[1771686337913,0.93816794,632.75,632.43,0.27502163]
[1771686338113,0.93816794,632.74,632.43,0.27502163]
[1771686338312,0.93816794,632.73,632.43,0.27502163]
[1771686338509,0.93816794,632.72,632.43,0.27502163]
[1771686338708,0.93816794,632.71,632.43,0.27502163]
[1771686338908,0.93816794,632.7,632.43,0.27502163]
[1771686339110,0.93816794,632.69,632.43,0.27502163]
[1771686339309,0.93816794,632.68,632.43,0.27502163]
[1771686339510,0.93816794,632.67,632.43,0.27502163]
[1771686339712,0.93816794,632.66,632.43,0.27502163]
[1771686339909,0.93816794,632.65,632.43,0.27502163]
[1771686340209,0.93816794,632.64,632.43,0.27502163]
[1771686340412,0.93816794,632.63,632.43,0.27502163]
[1771686340608,1.18280184,632.83,632.43,0.27502163]
[1771686340810,0.93799305,632.82,632.43,0.27502163]
[1771686341011,0.93799305,632.81,632.43,0.27502163]
[1771686341214,0.93799305,632.8,632.43,0.27502163]
[1771686341414,0.93799305,632.79,632.43,0.27502163]
[1771686341615,0.93799305,632.78,632.43,0.27502163]
[1771686341815,0.93799305,632.77,632.43,0.27502163]
[1771686342011,0.93799305,632.76,632.43,0.27502163]
[1771686342312,0.93799305,632.75,632.43,0.27502163]
[1771686342511,0.93799305,632.74,632.43,0.27502163]
[1771686342712,0.93799305,632.73,632.43,0.27502163]
[1771686342913,0.93799305,632.72,632.43,0.27502163]
[1771686343215,0.93799305,632.71,632.43,0.27502163]
[1771686343416,0.93799305,632.7,632.43,0.27502163]
[1771686343617,0.93799305,632.69,632.43,0.27502163]
[1771686343916,0.93799305,632.68,632.43,0.27502163]
[1771686344116,0.93799305,632.67,632.43,0.27502163]
[1771686344313,0.93799305,632.66,632.43,0.27502163]
[1771686344513,0.93799305,632.65,632.43,0.27502163]
[1771686344816,0.93799305,632.64,632.43,0.27502163]
[1771686345016,0.93799305,632.63,632.43,0.27502163]
[1771686345218,1.18280184,632.83,632.43,0.27502163]
[1771686345415,0.93811128,632.82,632.43,0.27502163]
[1771686345618,0.93811128,632.81,632.43,0.27502163]
[1771686345818,0.93811128,632.8,632.43,0.27502163]
[1771686346015,0.93811128,632.79,632.43,0.27502163]
[1771686346318,0.93811128,632.78,632.43,0.27502163]
[1771686346518,0.93811128,632.77,632.43,0.27502163]
[1771686346719,0.93811128,632.76,632.43,0.27502163]
[1771686346919,0.93811128,632.75,632.43,0.27502163]
[1771686347120,0.93811128,632.74,632.43,0.27502163]
[1771686347419,1.18280184,632.83,632.43,0.27502163]
[1771686347420,0.93811128,632.73,632.43,0.27502163]
[1771686347619,0.93811128,632.72,632.43,0.27502163]
[1771686347819,0.93811128,632.71,632.43,0.27502163]
[1771686348015,0.93811128,632.7,632.43,0.27502163]
[1771686348218,0.93811128,632.69,632.43,0.27502163]
[1771686348417,0.93811128,632.68,632.43,0.27502163]
[1771686348621,0.93811128,632.67,632.43,0.27502163]
[1771686348820,0.93811128,632.66,632.43,0.27502163]
[1771686349018,0.93811128,632.65,632.43,0.27502163]
[1771686349217,0.93811128,632.64,632.43,0.27502163]
[1771686349521,0.93811128,632.63,632.43,0.27502163]
[1771686349721,1.18280184,632.83,632.43,0.27502163]
[1771686349922,0.93825989,632.82,632.43,0.27502163]
[1771686350119,0.93825989,632.81,632.43,0.27502163]
[1771686350323,0.93825989,632.8,632.05,1.693]
[1771686350524,0.93825989,632.79,632.31,0.2750999]
[1771686350724,0.93825989,632.78,632.05,1.693]
[1771686351021,0.93825989,632.77,632.31,0.27510208]
[1771686351324,0.93825989,632.76,632.05,1.693]
[1771686351521,0.93825989,632.75,632.3,0.27510643]
[1771686351724,0.93825989,632.74,632.3,0.27510643]
[1771686351925,0.93825989,632.73,632.05,1.693]
[1771686352224,0.93825989,632.72,632.3,0.2751086]
[1771686352424,0.93825989,632.71,632.05,1.693]
[1771686352626,0.93825989,632.7,632.21,0.27511078]
[1771686352925,0.93825989,632.69,632.21,0.27511078]
[1771686353126,0.93825989,632.68,632.21,0.27511078]
[1771686353327,0.93825989,632.67,632.21,0.27511078]
[1771686353528,0.93825989,632.66,632.21,0.27511078]
[1771686353725,0.93825989,632.65,632.21,0.27511078]
[1771686354025,0.93825989,632.64,632.21,0.27511078]
[1771686354224,0.93825989,632.63,632.21,0.27511078]
[1771686354528,0.93825989,632.62,632.21,0.27511078]
[1771686354727,0.93825989,632.61,632.21,0.27511078]
[1771686355023,0.93825989,632.6,632.21,0.27511078]
[1771686355223,0.93825989,632.59,632.21,0.27511078]
[1771686355429,1.18280184,632.79,632.21,0.27511078]
[1771686355728,2.12081969,632.78,632.21,0.27511078]
[1771686355928,0.93801785,632.77,632.21,0.27511078]
[1771686356126,0.93801785,632.76,632.21,0.27511078]
[1771686356427,1.18280184,632.78,632.21,0.27511078]
[1771686356428,0.93801785,632.75,632.21,0.27511078]
[1771686356628,0.93801785,632.74,632.21,0.27511078]
[1771686356925,0.93801785,632.73,632.21,0.27511078]
[1771686357125,0.93801785,632.72,632.21,0.27511078]
[1771686357428,0.93801785,632.71,632.21,0.27511078]
[1771686357628,0.93801785,632.7,632.21,0.27511078]
[1771686357929,2.12081969,632.69,632.21,0.27511078]
[1771686358229,0.93801785,632.68,632.21,0.27511078]
[1771686358530,0.93801785,632.67,632.21,0.27511078]
[1771686358726,0.93801785,632.66,632.21,0.27511078]
[1771686358926,0.93801785,632.65,632.21,0.27511078]
[1771686359126,0.93801785,632.64,632.21,0.27511078]
[1771686359326,0.93801785,632.63,632.21,0.27511078]
[1771686359526,0.93801785,632.62,632.21,0.27511078]
[1771686359725,0.93801785,632.61,632.21,0.27511078]
[1771686359926,0.93801785,632.6,632.21,0.27511078]
[1771686360130,0.93801785,632.59,632.21,0.27511078]
[1771686360328,0.93801785,632.58,632.21,0.27511078]
[1771686360530,0.93801785,632.57,632.21,0.27511078]
[1771686360731,0.93801785,632.56,632.21,0.27511078]
[1771686361031,0.93801785,632.55,632.21,0.27511078]
[1771686361228,0.93801785,632.54,632.21,0.27511078]
[1771686361428,0.93801785,632.53,632.21,0.27511078]
[1771686361628,0.93801785,632.52,632.21,0.27511078]
[1771686361930,0.93801785,632.51,632.21,0.27511078]
[1771686362132,0.93801785,632.5,632.21,0.27511078]
[1771686362329,0.93801785,632.49,632.21,0.27511078]
[1771686362530,0.93801785,632.48,632.21,0.27511078]
[1771686362834,0.93801785,632.47,632.21,0.27511078]
[1771686363030,0.93801785,632.46,632.21,0.27511078]
[1771686363234,1.18280184,632.67,632.21,0.27511078]
[1771686363532,0.9339719,632.66,632.21,0.27511078]
[1771686363732,0.9339719,632.65,632.21,0.27511078]
[1771686364029,0.9339719,632.64,632.21,0.27511078]
[1771686364232,0.9339719,632.63,632.21,0.27511078]
[1771686364431,0.9339719,632.62,632.21,0.27511078]
[1771686364631,0.9339719,632.61,632.21,0.27511078]
[1771686364831,0.9339719,632.6,632.21,0.27511078]
[1771686365033,0.9339719,632.59,632.21,0.27511078]
[1771686365232,0.9339719,632.58,632.21,0.27511078]
[1771686365437,0.9339719,632.57,632.21,0.27511078]
[1771686365637,0.9339719,632.56,632.21,0.27511078]
[1771686365837,0.9339719,632.55,632.21,0.27511078]
[1771686366138,0.9339719,632.54,632.21,0.27511078]
[1771686366334,0.9339719,632.53,632.21,0.27511078]
[1771686366538,0.9339719,632.52,632.21,0.27511078]
[1771686366837,1.18280184,632.72,632.21,0.27511078]
[1771686367038,0.93348249,632.71,632.21,0.27511078]
[1771686367234,0.93348249,632.7,632.21,0.27511078]
[1771686367433,0.93348249,632.69,632.21,0.27511078]
[1771686367637,0.93348249,632.68,632.21,0.27511078]
[1771686367835,0.93348249,632.67,632.21,0.27511078]
[1771686368141,0.93348249,632.66,632.21,0.27511078]
[1771686368340,0.93348249,632.65,632.21,0.27511078]
[1771686368537,0.93348249,632.64,632.21,0.27511078]
[1771686368840,0.93348249,632.63,632.21,0.27511078]
[1771686369038,0.93348249,632.62,632.21,0.27511078]
[1771686369338,0.93348249,632.61,632.21,0.27511078]
[1771686369542,0.93348249,632.6,632.21,0.27511078]
[1771686369741,0.93348249,632.59,632.21,0.27511078]
[1771686369941,0.93348249,632.58,632.21,0.27511078]
[1771686370142,0.93348249,632.57,632.21,0.27511078]
[1771686370338,1.18280184,632.77,632.21,0.27511078]
[1771686370542,0.93280179,632.76,632.21,0.27511078]
[1771686370740,0.93280179,632.75,632.21,0.27511078]
[1771686370944,0.93280179,632.74,632.21,0.27511078]
[1771686371240,0.93280179,632.73,632.21,0.27511078]
[1771686371445,0.93280179,632.72,632.21,0.27511078]
[1771686371745,0.93280179,632.71,632.21,0.27511078]
[1771686371943,0.93280179,632.7,632.21,0.27511078]
[1771686372144,0.93280179,632.69,632.21,0.27511078]
[1771686372341,0.93280179,632.68,632.21,0.27511078]
[1771686372644,0.93280179,632.67,632.21,0.27511078]
[1771686372844,0.93280179,632.66,632.21,0.27511078]
[1771686373045,0.93280179,632.65,632.21,0.27511078]
[1771686373244,0.93280179,632.64,632.21,0.27511078]
[1771686373444,0.93280179,632.63,632.21,0.27511078]
[1771686373649,0.93280179,632.62,632.21,0.27511078]
[1771686373949,0.93280179,632.61,632.21,0.27511078]
[1771686374148,1.18280184,632.82,632.21,0.27511078]
[1771686374350,2.11620408,632.81,632.21,0.27511078]
[1771686374549,0.93340224,632.8,632.21,0.27511078]
[1771686382355,2.11620408,632.8,632.21,0.27511078]
[1771686382655,0.93340224,632.79,632.21,0.27511078]
[1771686382954,0.93340224,632.78,632.21,0.27511078]
[1771686383154,0.93340224,632.77,632.21,0.27511078]
[1771686383355,0.93340224,632.76,632.21,0.27511078]
[1771686383549,1.18280184,632.8,632.21,0.27511078]
[1771686383550,0.93340224,632.75,632.21,0.27511078]
[1771686383854,0.93340224,632.74,632.21,0.27511078]
[1771686384150,0.93340224,632.73,632.21,0.27511078]
[1771686384356,0.93340224,632.72,632.21,0.27511078]
[1771686384553,0.93340224,632.71,632.21,0.27511078]
[1771686384756,0.93340224,632.7,632.21,0.27511078]
[1771686384957,0.93340224,632.69,632.21,0.27511078]
[1771686385154,0.93340224,632.68,632.21,0.27511078]
[1771686385354,0.93340224,632.67,632.21,0.27511078]
[1771686385552,0.93340224,632.66,632.21,0.27511078]
[1771686385756,0.93340224,632.65,632.21,0.27511078]
[1771686386052,0.93340224,632.64,632.21,0.27511078]
[1771686386256,0.93340224,632.63,632.21,0.27511078]
[1771686386454,0.93340224,632.62,632.21,0.27511078]
[1771686386753,0.93340224,632.61,632.21,0.27511078]
[1771686386958,1.18280184,632.81,632.21,0.27511078]
[1771686387158,0.93922852,632.8,632.21,0.27511078]
[1771686387457,0.93922852,632.79,632.21,0.27511078]
[1771686387652,0.93922852,632.78,632.21,0.27511078]
[1771686387956,0.93922852,632.77,632.21,0.27511078]
[1771686388154,0.93922852,632.76,632.21,0.27511078]
[1771686388354,0.93922852,632.75,632.21,0.27511078]
[1771686388558,0.93922852,632.74,632.21,0.27511078]
[1771686388754,0.93922852,632.73,632.21,0.27511078]
[1771686388954,0.93922852,632.72,632.21,0.27511078]
[1771686389160,0.93922852,632.71,632.21,0.27511078]
[1771686389458,0.93922852,632.7,632.21,0.27511078]
[1771686389656,0.93922852,632.69,632.21,0.27511078]
[1771686389854,0.93922852,632.68,632.21,0.27511078]
[1771686390159,0.93922852,632.67,632.21,0.27511078]
[1771686390459,0.93922852,632.66,632.21,0.27511078]
[1771686390755,0.93922852,632.65,632.21,0.27511078]
[1771686390955,0.93922852,632.64,632.21,0.27511078]
[1771686391259,1.18280184,633.03,632.21,0.27511078]
[1771686391555,2.3538975,633.26,632.21,0.27511078]
[1771686391556,1.18280184,633.0,632.21,0.27511078]
[1771686391758,1.18280184,632.98,632.21,0.27511078]
[1771686392055,0.93930958,632.97,632.21,0.27511078]
[1771686392255,0.93930958,632.96,632.21,0.27511078]
[1771686392456,1.18280184,632.89,632.21,0.27511078]
[1771686392758,0.93930958,632.88,632.21,0.27511078]
[1771686392954,0.93930958,632.87,632.21,0.27511078]
[1771686393258,0.93930958,632.86,632.21,0.27511078]
[1771686393458,0.93930958,632.85,632.21,0.27511078]
[1771686393658,0.93930958,632.84,632.21,0.27511078]
[1771686393856,0.93930958,632.83,632.21,0.27511078]
[1771686394155,1.18280184,632.89,632.21,0.27511078]
[1771686394156,0.93930958,632.82,632.21,0.27511078]
[1771686394356,0.93930958,632.81,632.21,0.27511078]
[1771686394561,0.93930958,632.8,632.21,0.27511078]
[1771686394757,0.93930958,632.79,632.21,0.27511078]
[1771686394957,0.93930958,632.78,632.21,0.27511078]
[1771686395158,0.93930958,632.77,632.21,0.27511078]
[1771686395458,0.93930958,632.76,632.21,0.27511078]
[1771686395762,0.93930958,632.75,632.21,0.27511078]
[1771686395962,0.93930958,632.74,632.21,0.27511078]
[1771686396163,0.93930958,632.73,632.21,0.27511078]
[1771686396364,0.93930958,632.72,632.21,0.27511078]
[1771686396565,0.93930958,632.71,632.21,0.27511078]
[1771686396860,0.93930958,632.7,632.21,0.27511078]
[1771686397066,1.18280184,632.9,632.21,0.27511078]
[1771686397368,0.93893512,632.89,632.21,0.27511078]
[1771686397566,0.93893512,632.88,632.21,0.27511078]
[1771686397865,0.93893512,632.87,632.21,0.27511078]
[1771686398065,0.93893512,632.86,632.21,0.27511078]
[1771686398267,0.93893512,632.85,632.21,0.27511078]
[1771686398466,0.93893512,632.84,632.21,0.27511078]
[1771686398667,0.93893512,632.83,632.21,0.27511078]
[1771686398866,0.93893512,632.82,632.21,0.27511078]
[1771686399064,0.93893512,632.81,632.21,0.27511078]
[1771686399265,0.93893512,632.8,632.21,0.27511078]
[1771686399464,0.93893512,632.79,632.21,0.27511078]
[1771686399662,0.93893512,632.78,632.21,0.27511078]
[1771686399864,0.93893512,632.77,632.21,0.27511078]
[1771686400064,0.93893512,632.76,632.21,0.27511078]
[1771686400267,0.93893512,632.75,632.21,0.27511078]
[1771686400465,0.93893512,632.74,632.21,0.27511078]
[1771686400671,0.93893512,632.73,632.21,0.27511078]
[1771686400869,0.93893512,632.72,632.21,0.27511078]
[1771686401066,0.93893512,632.71,632.21,0.27511078]
[1771686401369,0.93893512,632.7,632.21,0.27511078]
[1771686401568,1.18280184,632.91,632.21,0.27511078]
[1771686401866,0.93866321,632.9,632.21,0.27511078]
[1771686402070,0.93866321,632.89,632.21,0.27511078]
[1771686402269,0.93866321,632.88,632.21,0.27511078]
[1771686402469,0.93866321,632.87,632.21,0.27511078]
[1771686402667,0.93866321,632.86,632.21,0.27511078]
[1771686402870,0.93866321,632.85,632.21,0.27511078]
[1771686403171,0.93866321,632.84,632.21,0.27511078]
[1771686403370,0.93866321,632.83,632.21,0.27511078]
[1771686403670,0.93866321,632.82,632.21,0.27511078]
[1771686403866,0.93866321,632.81,632.21,0.27511078]
[1771686404069,0.93866321,632.8,632.21,0.27511078]
[1771686404268,0.93866321,632.79,632.21,0.27511078]
[1771686404467,1.18280184,632.91,632.21,0.27511078]
[1771686404468,0.93866321,632.78,632.21,0.27511078]
[1771686404666,0.93866321,632.77,632.21,0.27511078]
[1771686404867,0.93866321,632.76,632.21,0.27511078]
[1771686405070,0.93866321,632.75,632.21,0.27511078]
[1771686405270,0.93866321,632.74,632.21,0.27511078]
[1771686405571,1.18280184,632.95,632.21,0.27511078]
[1771686405773,0.93842232,632.94,632.21,0.27511078]
[1771686405970,0.93842232,632.93,632.21,0.27511078]
[1771686406274,0.93842232,632.92,632.21,0.27511078]
[1771686406469,0.93842232,632.91,632.21,0.27511078]
[1771686406674,0.93842232,632.9,632.21,0.27511078]
[1771686406870,0.93842232,632.89,632.21,0.27511078]
[1771686407070,0.93842232,632.88,632.21,0.27511078]
[1771686407375,0.93842232,632.87,632.21,0.27511078]
[1771686407572,0.93842232,632.86,632.21,0.27511078]
[1771686407777,0.93842232,632.85,632.21,0.27511078]
[1771686407976,0.93842232,632.84,632.21,0.27511078]
[1771686408275,0.93842232,632.83,632.21,0.27511078]
[1771686408472,0.93842232,632.82,632.21,0.27511078]
[1771686408673,0.93842232,632.81,632.21,0.27511078]
[1771686408876,0.93842232,632.8,632.21,0.27511078]
[1771686409077,0.93842232,632.79,632.21,0.27511078]
[1771686409377,0.93842232,632.78,632.21,0.27511078]
[1771686409573,0.93842232,632.77,632.21,0.27511078]
[1771686409772,0.93842232,632.76,632.21,0.27511078]
[1771686409976,0.93842232,632.75,632.21,0.27511078]
[1771686410176,1.18280184,632.95,632.21,0.27511078]
[1771686410372,0.93532582,632.94,632.21,0.27511078]
[1771686410672,0.93532582,632.93,632.21,0.27511078]
[1771686410875,0.93532582,632.92,632.21,0.27511078]
[1771686411073,0.93532582,632.91,632.21,0.27511078]
[1771686411373,0.93532582,632.9,632.21,0.27511078]
[1771686411576,0.93532582,632.89,632.21,0.27511078]
[1771686411774,0.93532582,632.88,632.21,0.27511078]
[1771686412076,0.93532582,632.87,632.21,0.27511078]
[1771686412273,0.93532582,632.86,632.21,0.27511078]
[1771686412476,0.93532582,632.85,632.22,1.256]
[1771686412775,0.93532582,632.84,632.22,1.256]
[1771686412973,0.93532582,632.83,632.22,1.256]
[1771686413177,0.93532582,632.82,632.22,1.256]
[1771686413476,0.93532582,632.81,632.22,1.256]
[1771686413775,0.93532582,632.8,632.22,1.256]
[1771686413977,0.93532582,632.79,632.22,1.256]
[1771686414177,0.93532582,632.78,632.22,1.256]
[1771686414377,0.93532582,632.77,632.22,1.256]
[1771686414576,0.93532582,632.76,632.22,1.256]
[1771686414875,0.93532582,632.75,632.22,1.256]
[1771686415076,0.93532582,632.74,632.22,1.256]
[1771686415276,0.93532582,632.73,632.22,1.256]
[1771686415575,1.18280184,632.93,632.22,1.256]
[1771686415776,0.93327807,632.92,632.22,1.256]
[1771686415976,0.93327807,632.91,632.22,1.256]
[1771686416276,0.93327807,632.9,632.22,1.256]
[1771686416576,0.93327807,632.89,632.22,1.256]
[1771686416776,0.93327807,632.88,632.22,1.256]
[1771686417076,0.93327807,632.87,632.22,1.256]
[1771686417376,0.93327807,632.86,632.22,1.256]
[1771686417570,0.93327807,632.85,632.22,1.256]
[1771686417773,0.93327807,632.84,632.22,1.256]
[1771686417974,0.93327807,632.83,632.22,1.256]
[1771686418177,0.93327807,632.82,632.22,1.256]
[1771686418377,0.93327807,632.81,632.22,1.256]
[1771686418577,0.93327807,632.8,632.22,1.256]
[1771686418778,0.93327807,632.79,632.22,1.256]
[1771686418973,0.93327807,632.78,632.22,1.256]
[1771686419177,0.93327807,632.77,632.22,1.256]
[1771686419374,0.93327807,632.76,632.22,1.256]
[1771686419573,0.93327807,632.75,632.22,1.256]
[1771686419876,0.93327807,632.74,632.22,1.256]
[1771686420077,0.93327807,632.73,632.22,1.256]
[1771686420276,1.18280184,632.93,632.22,1.256]
[1771686420475,0.93288259,632.92,632.22,1.256]
[1771686420774,0.93288259,632.91,632.22,1.256]
[1771686420977,0.93288259,632.9,632.22,1.256]
[1771686421180,0.93288259,632.89,632.22,1.256]
[1771686421474,0.93288259,632.88,632.22,1.256]
[1771686421678,0.93288259,632.87,632.22,1.256]
[1771686421978,0.93288259,632.86,632.22,1.256]
[1771686422176,0.93288259,632.85,632.22,1.256]
[1771686422374,0.93288259,632.84,632.22,1.256]
[1771686422575,0.93288259,632.83,632.22,1.256]
[1771686422778,0.93288259,632.82,632.22,1.256]
[1771686422980,0.93288259,632.81,632.22,1.256]
[1771686423279,0.93288259,632.8,632.22,1.256]
[1771686423474,1.18280184,633.0,632.22,1.256]
[1771686423677,0.93214467,632.99,632.22,1.256]
[1771686423875,0.93217345,632.98,632.22,1.256]
[1771686424178,0.93217345,632.97,632.22,1.256]
[1771686424479,2.3538975,633.23,632.22,1.256]
[1771686424480,0.93217345,632.96,632.22,1.256]
[1771686424675,1.17520755,633.01,632.22,1.256]
[1771686424676,0.93217345,632.95,632.22,1.256]
[1771686424874,0.93217345,632.94,632.22,1.256]
[1771686425078,0.93217345,632.93,632.22,1.256]
[1771686425278,0.93217345,632.92,632.22,1.256]
[1771686425480,0.93217345,632.91,632.22,1.256]
[1771686425678,0.93217345,632.9,632.21,0.27511078]
[1771686425881,0.93217345,632.89,632.21,0.27511078]
[1771686426177,0.93217345,632.88,632.21,0.27511078]
[1771686426477,0.93217345,632.87,632.21,0.27511078]
[1771686426675,0.93217345,632.86,632.21,0.27511078]
[1771686426880,0.93217345,632.85,632.21,0.27511078]
[1771686427083,0.93217345,632.84,632.21,0.27511078]
[1771686427276,0.93217345,632.83,632.21,0.27511078]
[1771686427479,0.93217345,632.82,632.21,0.27511078]
[1771686427677,1.17520755,633.02,632.21,0.27511078]
[1771686427878,0.93231908,633.01,632.21,0.27511078]
[1771686428077,0.93231908,633.0,632.21,0.27511078]
[1771686428282,0.93231908,632.99,632.21,0.27511078]
[1771686428480,0.93231908,632.98,632.21,0.27511078]
[1771686428780,0.93231908,632.97,632.21,0.27511078]
[1771686428978,0.93231908,632.96,632.21,0.27511078]
[1771686429182,0.93231908,632.95,632.21,0.27511078]
[1771686429382,0.93231908,632.94,632.21,0.27511078]
[1771686429680,0.93231908,632.93,632.22,1.128]
[1771686429883,0.93231908,632.92,632.22,1.128]
[1771686430179,0.93231908,632.91,632.22,1.128]
[1771686430379,0.93231908,632.9,632.22,1.128]
[1771686430582,0.93231908,632.89,632.22,1.128]
[1771686430785,0.93231908,632.88,632.22,1.128]
[1771686430986,0.93231908,632.87,632.22,1.128]
[1771686431285,0.93231908,632.86,632.22,1.128]
[1771686431483,0.93231908,632.85,632.22,1.128]
[1771686431684,1.17520755,633.05,632.22,1.128]
[1771686432087,0.93271836,633.04,632.22,1.128]
[1771686432289,0.93271836,633.03,632.22,1.128]